[Event "*** Titled Tuesday Blitz"]
[Site "Chess.com"]
[Date "2020.10.20"]
[Round "11"]
[White "ThePatrick27"]
[Black "Arfan48"]
[Result "1/2-1/2"]
[WhiteElo "2557"]
[BlackElo "2420"]
[TimeControl "180+1"]
[EndTime "12:09:16 PDT"]
[Termination "Game drawn by repetition"]

1. d4 {[%clk 0:03:00.9]} 1... Nf6 {[%clk 0:02:56.8]} 2. c4 {[%clk 0:02:58.8]}
2... g6 {[%clk 0:02:57.1]} 3. Nf3 {[%clk 0:02:58.5]} 3... Bg7 {[%clk 0:02:57.6]}
4. Nc3 {[%clk 0:02:56.2]} 4... O-O {[%clk 0:02:58]} 5. e4 {[%clk 0:02:55.5]}
5... d6 {[%clk 0:02:58.6]} 6. Be2 {[%clk 0:02:55.6]} 6... Na6 {[%clk 0:02:59.2]}
7. O-O {[%clk 0:02:54.7]} 7... e5 {[%clk 0:02:59.8]} 8. dxe5 {[%clk 0:02:39.8]}
8... dxe5 {[%clk 0:03:00.7]} 9. Be3 {[%clk 0:02:38.3]} 9... Ng4 {[%clk 0:02:55]}
10. Bg5 {[%clk 0:02:37]} 10... Qe8 {[%clk 0:02:54.9]} 11. Nd5 {[%clk 0:02:30.8]}
11... f6 {[%clk 0:02:52.2]} 12. Bd2 {[%clk 0:02:22]} 12... c6 {[%clk 0:02:51.5]}
13. Ne3 {[%clk 0:02:19.7]} 13... Nxe3 {[%clk 0:02:42.5]} 14. Bxe3 {[%clk
0:02:19.6]} 14... Qe7 {[%clk 0:02:42.5]} 15. Qc2 {[%clk 0:02:08.9]} 15... f5
{[%clk 0:02:42.2]} 16. exf5 {[%clk 0:01:48.6]} 16... gxf5 {[%clk 0:02:41.3]} 17.
c5 {[%clk 0:01:44.8]} 17... f4 {[%clk 0:02:35.9]} 18. Bd2 {[%clk 0:01:26.2]}
18... e4 {[%clk 0:02:29.8]} 19. Bc4+ {[%clk 0:01:15.8]} 19... Kh8 {[%clk
0:02:26.9]} 20. Rfe1 {[%clk 0:01:10.4]} 20... Bf5 {[%clk 0:02:24.9]} 21. Bxa6
{[%clk 0:01:06.2]} 21... bxa6 {[%clk 0:02:19.6]} 22. Bc3 {[%clk 0:01:04.5]}
22... Rae8 {[%clk 0:01:18.2]} 23. Nd4 {[%clk 0:00:35.4]} 23... Bd7 {[%clk
0:01:04.1]} 24. Re2 {[%clk 0:00:33.9]} 24... f3 {[%clk 0:00:32.7]} 25. Nxf3
{[%clk 0:00:23.8]} 25... Bg4 {[%clk 0:00:17]} 26. Re3 {[%clk 0:00:17.6]} 26...
Bxf3 {[%clk 0:00:15.9]} 27. gxf3 {[%clk 0:00:17.7]} 27... Rxf3 {[%clk
0:00:12.6]} 28. Kh1 {[%clk 0:00:13.1]} 28... Rxe3 {[%clk 0:00:07.3]} 29. fxe3
{[%clk 0:00:12.5]} 29... Rf8 {[%clk 0:00:05]} 30. Rg1 {[%clk 0:00:11.7]} 30...
Bxc3 {[%clk 0:00:05.2]} 31. Qxc3+ {[%clk 0:00:11.6]} 31... Qf6 {[%clk
0:00:05.8]} 32. Rf1 {[%clk 0:00:09.1]} 32... Qxc3 {[%clk 0:00:02.7]} 33. Rxf8+
{[%clk 0:00:09.3]} 33... Kg7 {[%clk 0:00:03.2]} 34. bxc3 {[%clk 0:00:08.7]}
34... Kxf8 {[%clk 0:00:03.8]} 35. Kg2 {[%clk 0:00:09.2]} 35... Ke7 {[%clk
0:00:04.5]} 36. Kg3 {[%clk 0:00:09.7]} 36... Ke6 {[%clk 0:00:05]} 37. Kf4 {[%clk
0:00:10.1]} 37... Kd5 {[%clk 0:00:05.5]} 38. Kf5 {[%clk 0:00:08.8]} 38... a5
{[%clk 0:00:05.4]} 39. a4 {[%clk 0:00:08.6]} 39... Kxc5 {[%clk 0:00:05]} 40.
Kxe4 {[%clk 0:00:07.5]} 40... Kc4 {[%clk 0:00:05.9]} 41. Kf5 {[%clk 0:00:07.8]}
41... Kb3 {[%clk 0:00:05.8]} 42. e4 {[%clk 0:00:08.5]} 42... Kxa4 {[%clk
0:00:06.7]} 43. e5 {[%clk 0:00:09.2]} 43... Kb3 {[%clk 0:00:07.6]} 44. e6 {[%clk
0:00:09.9]} 44... a4 {[%clk 0:00:08.5]} 45. e7 {[%clk 0:00:10.5]} 45... a3
{[%clk 0:00:09.4]} 46. e8=Q {[%clk 0:00:11.1]} 46... a2 {[%clk 0:00:10.3]} 47.
Qe1 {[%clk 0:00:11.6]} 47... Kb2 {[%clk 0:00:10.8]} 48. Qd2+ {[%clk 0:00:11.9]}
48... Kb1 {[%clk 0:00:11]} 49. Qd1+ {[%clk 0:00:12.2]} 49... Kb2 {[%clk
0:00:11.4]} 50. Qd2+ {[%clk 0:00:12.6]} 50... Kb1 {[%clk 0:00:11.8]} 51. Qd3+
{[%clk 0:00:13]} 51... Kb2 {[%clk 0:00:12]} 52. Qe2+ {[%clk 0:00:13.5]} 52...
Kb1 {[%clk 0:00:12.4]} 53. Qe1+ {[%clk 0:00:13.6]} 53... Kb2 {[%clk 0:00:12.9]}
54. Qe2+ {[%clk 0:00:13.1]} 54... Kb1 {[%clk 0:00:13.1]} 55. Qd1+ {[%clk
0:00:10.3]} 55... Kb2 {[%clk 0:00:13.2]} 56. Qd2+ {[%clk 0:00:05]} 1/2-1/2

[Event "*** Titled Tuesday Blitz"]
[Site "Chess.com"]
[Date "2020.10.20"]
[Round "11"]
[White "glebus008"]
[Black "WuinaterJr"]
[Result "1-0"]
[WhiteElo "2365"]
[BlackElo "2519"]
[TimeControl "180+1"]
[EndTime "12:09:20 PDT"]
[Termination "glebus008 won by resignation"]

1. e4 {[%clk 0:03:00.1]} 1... c5 {[%clk 0:02:59.3]} 2. Nf3 {[%clk 0:02:59.5]}
2... d6 {[%clk 0:02:59.5]} 3. Nc3 {[%clk 0:02:59.6]} 3... a6 {[%clk 0:02:58.8]}
4. g3 {[%clk 0:02:58.8]} 4... Nc6 {[%clk 0:02:57.7]} 5. Bg2 {[%clk 0:02:54.3]}
5... g6 {[%clk 0:02:57.9]} 6. d4 {[%clk 0:02:53.5]} 6... cxd4 {[%clk 0:02:58.8]}
7. Nxd4 {[%clk 0:02:54]} 7... Bg7 {[%clk 0:02:56.6]} 8. Nxc6 {[%clk 0:02:54]}
8... bxc6 {[%clk 0:02:57.5]} 9. e5 {[%clk 0:02:54.3]} 9... d5 {[%clk 0:02:57.5]}
10. Nxd5 {[%clk 0:02:44.4]} 10... Bxe5 {[%clk 0:02:40.2]} 11. Ne3 {[%clk
0:02:15.3]} 11... Qxd1+ {[%clk 0:02:38.9]} 12. Nxd1 {[%clk 0:02:16.2]} 12... Bb7
{[%clk 0:02:34.9]} 13. O-O {[%clk 0:02:14.7]} 13... Rd8 {[%clk 0:02:32.8]} 14.
Ne3 {[%clk 0:02:10.2]} 14... e6 {[%clk 0:02:27.6]} 15. Nc4 {[%clk 0:02:10]}
15... Bc7 {[%clk 0:02:25.9]} 16. Bd2 {[%clk 0:02:04]} 16... Ne7 {[%clk
0:02:23.6]} 17. Ba5 {[%clk 0:02:03.7]} 17... Bxa5 {[%clk 0:02:20.5]} 18. Nxa5
{[%clk 0:02:04.6]} 18... Ba8 {[%clk 0:02:20.9]} 19. Rad1 {[%clk 0:01:59.8]}
19... O-O {[%clk 0:02:21]} 20. Rfe1 {[%clk 0:01:49.2]} 20... c5 {[%clk
0:02:17.8]} 21. Bxa8 {[%clk 0:01:47.5]} 21... Rxa8 {[%clk 0:02:18.7]} 22. Rd7
{[%clk 0:01:47.1]} 22... Nd5 {[%clk 0:02:18.4]} 23. Nb7 {[%clk 0:01:23.8]} 23...
Rac8 {[%clk 0:02:14.6]} 24. c4 {[%clk 0:01:16.6]} 24... Nb6 {[%clk 0:02:11.6]}
25. Re7 {[%clk 0:01:07.1]} 25... Nxc4 {[%clk 0:02:09.1]} 26. Rc1 {[%clk
0:01:06.2]} 26... Nxb2 {[%clk 0:02:09]} 27. Rxc5 {[%clk 0:01:05.8]} 27... Rxc5
{[%clk 0:02:06.7]} 28. Nxc5 {[%clk 0:01:06.7]} 28... Rc8 {[%clk 0:02:07]} 29.
Nxa6 {[%clk 0:01:04.1]} 29... Nd3 {[%clk 0:02:01.7]} 30. Rc7 {[%clk 0:00:59.3]}
30... Ra8 {[%clk 0:01:59.3]} 31. Rc6 {[%clk 0:00:59.5]} 31... Ne5 {[%clk
0:01:56.8]} 32. Rb6 {[%clk 0:00:56.9]} 32... Nc4 {[%clk 0:01:55.4]} 33. Rb8+
{[%clk 0:00:56.4]} 33... Rxb8 {[%clk 0:01:53.8]} 34. Nxb8 {[%clk 0:00:57.3]}
34... Kf8 {[%clk 0:01:54.5]} 35. Kf1 {[%clk 0:00:56.7]} 35... Ke7 {[%clk
0:01:55]} 36. Ke2 {[%clk 0:00:57.1]} 36... Kd6 {[%clk 0:01:55.4]} 37. h4 {[%clk
0:00:51.2]} 37... Ne5 {[%clk 0:01:48.2]} 38. Na6 {[%clk 0:00:45.2]} 38... Kc6
{[%clk 0:01:45.7]} 39. Nb4+ {[%clk 0:00:44.6]} 39... Kb5 {[%clk 0:01:45.2]} 40.
Nd3 {[%clk 0:00:44.1]} 40... Nc6 {[%clk 0:01:45.5]} 41. Ke3 {[%clk 0:00:40.1]}
41... Kc4 {[%clk 0:01:34.3]} 42. a4 {[%clk 0:00:25]} 42... Kb3 {[%clk 0:01:29]}
43. Nc5+ {[%clk 0:00:13.9]} 43... Kb4 {[%clk 0:01:29.1]} 44. Ne4 {[%clk
0:00:13.1]} 44... Kxa4 {[%clk 0:01:28.9]} 45. Ng5 {[%clk 0:00:13.2]} 45... Nd8
{[%clk 0:01:22.4]} 46. Nxh7 {[%clk 0:00:13.1]} 46... Kb5 {[%clk 0:01:22.8]} 47.
g4 {[%clk 0:00:13.5]} 47... Kc5 {[%clk 0:01:21.4]} 48. Kf4 {[%clk 0:00:14.4]}
48... Kd6 {[%clk 0:01:20.6]} 49. Kg5 {[%clk 0:00:14.7]} 49... Ke7 {[%clk
0:01:16.8]} 50. h5 {[%clk 0:00:15.1]} 50... gxh5 {[%clk 0:01:16.5]} 51. gxh5
{[%clk 0:00:16]} 51... e5 {[%clk 0:01:17]} 52. h6 {[%clk 0:00:15.8]} 52... Ne6+
{[%clk 0:01:04.5]} 53. Kf5 {[%clk 0:00:15.7]} 53... Nf4 {[%clk 0:01:00.5]} 54.
Ng5 {[%clk 0:00:14.4]} 54... Ng6 {[%clk 0:00:58.9]} 55. h7 {[%clk 0:00:14.5]}
55... Kf8 {[%clk 0:00:57.7]} 56. Kf6 {[%clk 0:00:13.1]} 56... Nh8 {[%clk
0:00:55.1]} 57. f3 {[%clk 0:00:12.5]} 57... Ke8 {[%clk 0:00:34]} 58. Kg7 {[%clk
0:00:13.4]} 58... Ke7 {[%clk 0:00:33]} 59. Kxh8 {[%clk 0:00:13.2]} 59... Kf8
{[%clk 0:00:33.4]} 60. Ne4 {[%clk 0:00:12.4]} 60... f5 {[%clk 0:00:32.9]} 61.
Ng5 {[%clk 0:00:12.1]} 61... e4 {[%clk 0:00:32]} 62. Nxe4 {[%clk 0:00:11.8]}
62... fxe4 {[%clk 0:00:32.9]} 63. fxe4 {[%clk 0:00:12.3]} 63... Kf7 {[%clk
0:00:33.2]} 64. e5 {[%clk 0:00:12.8]} 64... Kf8 {[%clk 0:00:33.7]} 65. e6 {[%clk
0:00:12.6]} 65... Ke7 {[%clk 0:00:34.3]} 66. Kg7 {[%clk 0:00:13.3]} 1-0

[Event "*** Titled Tuesday Blitz"]
[Site "Chess.com"]
[Date "2020.10.20"]
[Round "11"]
[White "arminmusovic"]
[Black "Durarbayli"]
[Result "0-1"]
[WhiteElo "2586"]
[BlackElo "2775"]
[TimeControl "180+1"]
[EndTime "12:09:24 PDT"]
[Termination "Durarbayli won by resignation"]

1. a3 {[%clk 0:02:58.6]} 1... Nf6 {[%clk 0:02:57.8]} 2. Nc3 {[%clk 0:02:59.5]}
2... d5 {[%clk 0:02:56.5]} 3. d3 {[%clk 0:02:59.3]} 3... e5 {[%clk 0:02:54.8]}
4. Bg5 {[%clk 0:02:58.8]} 4... d4 {[%clk 0:02:49.9]} 5. Ne4 {[%clk 0:02:58.1]}
5... Be7 {[%clk 0:02:50.3]} 6. Ng3 {[%clk 0:02:56]} 6... c5 {[%clk 0:02:45.5]}
7. e4 {[%clk 0:02:53.3]} 7... dxe3 {[%clk 0:02:43.9]} 8. fxe3 {[%clk 0:02:47.7]}
8... Nd5 {[%clk 0:02:31.7]} 9. Bxe7 {[%clk 0:02:45.6]} 9... Qxe7 {[%clk
0:02:32.6]} 10. Qd2 {[%clk 0:02:32.2]} 10... Nc6 {[%clk 0:02:30.6]} 11. Nf3
{[%clk 0:02:23.7]} 11... O-O {[%clk 0:02:26.9]} 12. c4 {[%clk 0:02:14.8]} 12...
Nc7 {[%clk 0:02:22.5]} 13. Be2 {[%clk 0:02:07.6]} 13... f5 {[%clk 0:02:16.2]}
14. Qc3 {[%clk 0:02:00.1]} 14... f4 {[%clk 0:02:11]} 15. exf4 {[%clk 0:01:53.3]}
15... exf4 {[%clk 0:02:11.9]} 16. Ne4 {[%clk 0:01:53.5]} 16... Bf5 {[%clk
0:02:11.4]} 17. Qc2 {[%clk 0:01:36.8]} 17... Rae8 {[%clk 0:02:08.2]} 18. O-O
{[%clk 0:01:17.9]} 18... Bxe4 {[%clk 0:02:05]} 19. dxe4 {[%clk 0:01:18.6]} 19...
Qxe4 {[%clk 0:02:05.4]} 20. Bd3 {[%clk 0:01:17.8]} 20... Qe7 {[%clk 0:01:33]}
21. Bxh7+ {[%clk 0:01:15.7]} 21... Kh8 {[%clk 0:01:32.9]} 22. Bg6 {[%clk
0:01:15.7]} 22... Rd8 {[%clk 0:01:28]} 23. Rae1 {[%clk 0:01:15.1]} 23... Qf6
{[%clk 0:01:27.2]} 24. Be4 {[%clk 0:01:13.2]} 24... Rde8 {[%clk 0:01:11.8]} 25.
Qf2 {[%clk 0:01:07.1]} 25... Ne6 {[%clk 0:01:10.1]} 26. Bxc6 {[%clk 0:01:00.4]}
26... bxc6 {[%clk 0:01:11]} 27. Re5 {[%clk 0:01:00.2]} 27... Re7 {[%clk
0:00:48.7]} 28. Rfe1 {[%clk 0:00:51.1]} 28... Rfe8 {[%clk 0:00:48.7]} 29. Qh4+
{[%clk 0:00:45]} 29... Kg8 {[%clk 0:00:40.5]} 30. Qh5 {[%clk 0:00:38.8]} 30...
Qf7 {[%clk 0:00:21.5]} 31. Qxf7+ {[%clk 0:00:22.6]} 31... Kxf7 {[%clk
0:00:22.4]} 32. Rf5+ {[%clk 0:00:23.2]} 32... Kg8 {[%clk 0:00:16.1]} 33. Rfe5
{[%clk 0:00:20.5]} 33... Kf7 {[%clk 0:00:15.8]} 34. Kf2 {[%clk 0:00:16.6]} 34...
Kf6 {[%clk 0:00:15.1]} 35. R1e4 {[%clk 0:00:14.4]} 35... g5 {[%clk 0:00:14.6]}
36. h4 {[%clk 0:00:13.1]} 36... g4 {[%clk 0:00:08.7]} 37. Rxe6+ {[%clk
0:00:11.9]} 37... Rxe6 {[%clk 0:00:07.9]} 38. Rxf4+ {[%clk 0:00:12.4]} 38... Ke7
{[%clk 0:00:06.2]} 39. Rxg4 {[%clk 0:00:12.6]} 39... Rb8 {[%clk 0:00:07.1]} 40.
b4 {[%clk 0:00:08.1]} 40... cxb4 {[%clk 0:00:06.3]} 41. axb4 {[%clk 0:00:09]}
41... Rxb4 {[%clk 0:00:06.8]} 42. Rg7+ {[%clk 0:00:09.4]} 42... Kd6 {[%clk
0:00:07.1]} 43. Rxa7 {[%clk 0:00:10.3]} 43... Rb2+ {[%clk 0:00:07.4]} 44. Kg3
{[%clk 0:00:09.8]} 44... Ree2 {[%clk 0:00:07.9]} 45. Kf4 {[%clk 0:00:04.4]}
45... Rxg2 {[%clk 0:00:07.8]} 46. h5 {[%clk 0:00:04.5]} 46... Rbc2 {[%clk
0:00:06.6]} 47. h6 {[%clk 0:00:01.3]} 47... Rxc4+ {[%clk 0:00:07.1]} 48. Ke3
{[%clk 0:00:01.9]} 48... Rc3+ {[%clk 0:00:05.8]} 49. Kd4 {[%clk 0:00:02]} 49...
Rxf3 {[%clk 0:00:05.2]} 50. Ke4 {[%clk 0:00:02.3]} 50... Rh3 {[%clk 0:00:04.7]}
51. Rg7 {[%clk 0:00:02.8]} 51... Rxg7 {[%clk 0:00:04.2]} 52. hxg7 {[%clk
0:00:03.7]} 52... Rg3 {[%clk 0:00:05.1]} 53. Kf5 {[%clk 0:00:04.6]} 53... Rxg7
{[%clk 0:00:05.4]} 54. Kf6 {[%clk 0:00:05.5]} 54... Re7 {[%clk 0:00:06.3]} 55.
Kg6 {[%clk 0:00:05.8]} 55... c5 {[%clk 0:00:07.2]} 56. Kg5 {[%clk 0:00:06.7]}
56... c4 {[%clk 0:00:08.1]} 57. Kg4 {[%clk 0:00:07.6]} 57... c3 {[%clk 0:00:09]}
58. Kg3 {[%clk 0:00:08.5]} 58... c2 {[%clk 0:00:09.9]} 0-1

[Event "*** Titled Tuesday Blitz"]
[Site "Chess.com"]
[Date "2020.10.20"]
[Round "11"]
[White "chenxiaoyuer"]
[Black "dopolian"]
[Result "1-0"]
[WhiteElo "2514"]
[BlackElo "2411"]
[TimeControl "180+1"]
[EndTime "12:09:24 PDT"]
[Termination "chenxiaoyuer won on time"]

1. e4 {[%clk 0:03:00.9]} 1... e5 {[%clk 0:02:58.2]} 2. Nf3 {[%clk 0:03:00.3]}
2... Nc6 {[%clk 0:02:58.5]} 3. Bb5 {[%clk 0:02:59.9]} 3... a6 {[%clk 0:02:58.4]}
4. Ba4 {[%clk 0:02:59.3]} 4... Nf6 {[%clk 0:02:58.3]} 5. d3 {[%clk 0:02:59]}
5... b5 {[%clk 0:02:58.4]} 6. Bb3 {[%clk 0:02:58.4]} 6... Bc5 {[%clk 0:02:56.8]}
7. O-O {[%clk 0:02:56.7]} 7... O-O {[%clk 0:02:56.5]} 8. c3 {[%clk 0:02:56.9]}
8... d5 {[%clk 0:02:54.5]} 9. Qe2 {[%clk 0:02:47.1]} 9... dxe4 {[%clk
0:02:26.1]} 10. dxe4 {[%clk 0:02:46.2]} 10... Qe7 {[%clk 0:02:20.3]} 11. Bg5
{[%clk 0:02:43.3]} 11... Be6 {[%clk 0:02:20.1]} 12. Nbd2 {[%clk 0:02:39.2]}
12... h6 {[%clk 0:02:18.1]} 13. Bh4 {[%clk 0:02:25.5]} 13... Rfd8 {[%clk
0:02:09.1]} 14. Rad1 {[%clk 0:02:09.7]} 14... Bb6 {[%clk 0:02:05.3]} 15. Bg3
{[%clk 0:01:49.4]} 15... Bg4 {[%clk 0:01:38.4]} 16. h3 {[%clk 0:01:46.1]} 16...
Bh5 {[%clk 0:01:38.1]} 17. Bc2 {[%clk 0:01:27.6]} 17... Rd6 {[%clk 0:01:22.6]}
18. a4 {[%clk 0:01:21.2]} 18... b4 {[%clk 0:01:01.6]} 19. Nc4 {[%clk 0:01:19.5]}
19... Rxd1 {[%clk 0:01:01.8]} 20. Rxd1 {[%clk 0:01:18]} 20... Bc5 {[%clk
0:01:01.8]} 21. a5 {[%clk 0:01:03.5]} 21... Rb8 {[%clk 0:00:26.2]} 22. Ba4
{[%clk 0:01:00]} 22... Qe6 {[%clk 0:00:18.8]} 23. Bxc6 {[%clk 0:00:51.8]} 23...
Qxc6 {[%clk 0:00:18.6]} 24. Nfxe5 {[%clk 0:00:36.2]} 24... Qxe4 {[%clk
0:00:14.7]} 25. Qxe4 {[%clk 0:00:26.5]} 25... Nxe4 {[%clk 0:00:15.6]} 26. Rd5
{[%clk 0:00:12]} 26... Ba7 {[%clk 0:00:10]} 27. Nc6 {[%clk 0:00:08.1]} 27...
Nxg3 {[%clk 0:00:04.4]} 28. Nxb8 {[%clk 0:00:03.1]} 28... Ne2+ {[%clk
0:00:04.2]} 29. Kh2 {[%clk 0:00:03.2]} 29... bxc3 {[%clk 0:00:03]} 30. bxc3
{[%clk 0:00:03]} 30... Nxc3 {[%clk 0:00:03.3]} 31. Rd8+ {[%clk 0:00:03.3]} 31...
Kh7 {[%clk 0:00:03.3]} 32. Nc6 {[%clk 0:00:04.2]} 32... Bc5 {[%clk 0:00:02.9]}
33. Rd7 {[%clk 0:00:04.3]} 33... Nb5 {[%clk 0:00:02.7]} 34. g3 {[%clk
0:00:04.1]} 34... Bg6 {[%clk 0:00:02.4]} 35. f4 {[%clk 0:00:04]} 35... Be4
{[%clk 0:00:02.3]} 36. N4e5 {[%clk 0:00:03.8]} 36... f6 {[%clk 0:00:02.1]} 37.
Ng4 {[%clk 0:00:03.5]} 37... Bxc6 {[%clk 0:00:01.7]} 38. Rd8 {[%clk 0:00:03.7]}
38... Bd5 {[%clk 0:00:01.2]} 39. Rxd5 {[%clk 0:00:03.2]} 39... Bd6 {[%clk
0:00:01.4]} 40. Rd3 {[%clk 0:00:03.3]} 40... Bb4 {[%clk 0:00:01.6]} 41. Nf2
{[%clk 0:00:03.7]} 41... Bxa5 {[%clk 0:00:02.1]} 42. Kg2 {[%clk 0:00:04.2]}
42... Bb6 {[%clk 0:00:02.5]} 43. Ne4 {[%clk 0:00:04.4]} 43... c5 {[%clk
0:00:02.6]} 44. Nd6 {[%clk 0:00:04.5]} 44... Bc7 {[%clk 0:00:02]} 45. Nxb5
{[%clk 0:00:04.4]} 45... axb5 {[%clk 0:00:01.8]} 46. Rd5 {[%clk 0:00:04.9]}
46... Bb6 {[%clk 0:00:01.4]} 47. Rd6 {[%clk 0:00:05.1]} 47... Ba7 {[%clk
0:00:01.7]} 48. Ra6 {[%clk 0:00:05]} 48... Bb8 {[%clk 0:00:02.2]} 49. Rb6 {[%clk
0:00:05.3]} 49... Bc7 {[%clk 0:00:02.2]} 50. Rxb5 {[%clk 0:00:05.5]} 50... Bd6
{[%clk 0:00:03]} 51. Rb6 {[%clk 0:00:05.5]} 51... Be7 {[%clk 0:00:03.5]} 52. Rc6
{[%clk 0:00:05.8]} 52... Kg6 {[%clk 0:00:03.5]} 53. Kf3 {[%clk 0:00:06.2]} 53...
Kf7 {[%clk 0:00:03]} 54. Ke4 {[%clk 0:00:06.6]} 54... g6 {[%clk 0:00:02.3]} 55.
g4 {[%clk 0:00:07]} 55... Ke8 {[%clk 0:00:01.9]} 56. Kd5 {[%clk 0:00:06.6]}
56... Kd7 {[%clk 0:00:02.5]} 57. Ra6 {[%clk 0:00:07.1]} 57... Ke8 {[%clk
0:00:01.9]} 58. Ke6 {[%clk 0:00:06.8]} 1-0

[Event "*** Titled Tuesday Blitz"]
[Site "Chess.com"]
[Date "2020.10.20"]
[Round "11"]
[White "poppy73"]
[Black "Pertinhez76"]
[Result "1/2-1/2"]
[WhiteElo "2221"]
[BlackElo "2143"]
[TimeControl "180+1"]
[EndTime "12:09:24 PDT"]
[Termination "Game drawn by repetition"]

1. e4 {[%clk 0:03:00.9]} 1... e6 {[%clk 0:02:59.3]} 2. d4 {[%clk 0:02:59.6]}
2... d5 {[%clk 0:02:58.7]} 3. Nc3 {[%clk 0:03:00]} 3... Nf6 {[%clk 0:02:58.1]}
4. Bg5 {[%clk 0:02:59.3]} 4... Bb4 {[%clk 0:02:53.3]} 5. e5 {[%clk 0:02:57.5]}
5... h6 {[%clk 0:02:52.7]} 6. Bc1 {[%clk 0:02:57.1]} 6... Bxc3+ {[%clk
0:02:45.8]} 7. bxc3 {[%clk 0:02:56.3]} 7... Ne4 {[%clk 0:02:43.1]} 8. Qg4 {[%clk
0:02:55.3]} 8... Kf8 {[%clk 0:02:32.1]} 9. Ne2 {[%clk 0:02:16.5]} 9... c5 {[%clk
0:02:26]} 10. f3 {[%clk 0:02:03.2]} 10... Ng5 {[%clk 0:02:24.2]} 11. h4 {[%clk
0:01:57.8]} 11... Nh7 {[%clk 0:02:22.4]} 12. Ba3 {[%clk 0:01:55.9]} 12... b6
{[%clk 0:02:21.3]} 13. dxc5 {[%clk 0:01:56]} 13... Kg8 {[%clk 0:02:18.9]} 14.
Nd4 {[%clk 0:01:48]} 14... Qc7 {[%clk 0:02:08.9]} 15. f4 {[%clk 0:01:21.9]}
15... bxc5 {[%clk 0:02:06.3]} 16. Nb5 {[%clk 0:01:17.3]} 16... Qa5 {[%clk
0:02:05.4]} 17. Bxc5 {[%clk 0:01:14.7]} 17... Nc6 {[%clk 0:02:02.5]} 18. a3
{[%clk 0:00:59.9]} 18... a6 {[%clk 0:01:48.1]} 19. Bb4 {[%clk 0:00:59.7]} 19...
Qb6 {[%clk 0:01:47.8]} 20. Nd6 {[%clk 0:00:48.2]} 20... Nxb4 {[%clk 0:01:38]}
21. cxb4 {[%clk 0:00:43.4]} 21... Qe3+ {[%clk 0:01:37.8]} 22. Be2 {[%clk
0:00:43.5]} 22... Nf8 {[%clk 0:01:25.5]} 23. Rh3 {[%clk 0:00:40.2]} 23... Qb6
{[%clk 0:01:20.6]} 24. Rg3 {[%clk 0:00:34.1]} 24... Rh7 {[%clk 0:01:20.3]} 25.
Bd3 {[%clk 0:00:26.9]} 25... g6 {[%clk 0:01:20.2]} 26. h5 {[%clk 0:00:24.4]}
26... Qg1+ {[%clk 0:01:19.4]} 27. Bf1 {[%clk 0:00:13.9]} 27... Rg7 {[%clk
0:01:14.4]} 28. Rd1 {[%clk 0:00:12.4]} 28... Bd7 {[%clk 0:01:09.9]} 29. Qf3
{[%clk 0:00:08.2]} 29... Bb5 {[%clk 0:01:04.7]} 30. Nxb5 {[%clk 0:00:07.7]}
30... axb5 {[%clk 0:01:04.1]} 31. Ke2 {[%clk 0:00:07.8]} 31... Rc8 {[%clk
0:00:55.9]} 32. hxg6 {[%clk 0:00:07.6]} 32... Nxg6 {[%clk 0:00:41.4]} 33. c3
{[%clk 0:00:05.4]} 33... Rc4 {[%clk 0:00:36.7]} 34. f5 {[%clk 0:00:02.8]} 34...
Re4+ {[%clk 0:00:31.3]} 35. Kd2 {[%clk 0:00:02.6]} 35... Nxe5 {[%clk 0:00:31.3]}
36. Rxg7+ {[%clk 0:00:01.6]} 36... Kxg7 {[%clk 0:00:32.2]} 37. Qg3+ {[%clk
0:00:02.1]} 37... Kf8 {[%clk 0:00:30.8]} 38. f6 {[%clk 0:00:02]} 38... Ke8
{[%clk 0:00:17.3]} 39. Bxb5+ {[%clk 0:00:01.1]} 39... Kd8 {[%clk 0:00:17.1]} 40.
Rxg1 {[%clk 0:00:02]} 40... Kc7 {[%clk 0:00:16.7]} 41. Qg7 {[%clk 0:00:02.1]}
41... Kb6 {[%clk 0:00:16.4]} 42. Qf8 {[%clk 0:00:01.8]} 42... Kxb5 {[%clk
0:00:15]} 43. Qc5+ {[%clk 0:00:02.7]} 43... Ka6 {[%clk 0:00:15.4]} 44. Qa5+
{[%clk 0:00:03.2]} 44... Kb7 {[%clk 0:00:15.7]} 45. Qc5 {[%clk 0:00:03.3]} 45...
Nc4+ {[%clk 0:00:14.9]} 46. Kc2 {[%clk 0:00:02.9]} 46... Re2+ {[%clk 0:00:15.3]}
47. Kb3 {[%clk 0:00:03.4]} 47... Rb2+ {[%clk 0:00:14.3]} 48. Ka4 {[%clk
0:00:03.8]} 48... Ra2 {[%clk 0:00:14.5]} 49. Kb5 {[%clk 0:00:03.8]} 49... Nxa3+
{[%clk 0:00:13.7]} 50. Ka4 {[%clk 0:00:04.1]} 50... Nc4+ {[%clk 0:00:12.6]} 51.
Kb3 {[%clk 0:00:04.4]} 51... Rb2+ {[%clk 0:00:12.9]} 52. Ka4 {[%clk 0:00:04.6]}
52... Ra2+ {[%clk 0:00:13.8]} 53. Kb3 {[%clk 0:00:04.7]} 53... Rb2+ {[%clk
0:00:14.2]} 54. Ka4 {[%clk 0:00:05]} 54... Ra2+ {[%clk 0:00:13.9]} 1/2-1/2